Workbook

Sheet Base
B2: Energy loss calculation method | C2: Charge State calculation methods | D2: Energy Straggling calculation methods | E2: names
E3: Zparticle= | F3: 92 | G3: =+Show_Element(Zparticle) -> U
E4: Aparticle= | F4: 238
E5: Ztarget= | F5: 14 | G5: =+Show_Element(Ztarget) -> Si
E6: Atarget= | F6: 28
E7: Energy= | F7: 200 | G7: MeV/u
E8: Thickness= | F8: 10 | G8: mg/cm2
E9: ZmQ= | F9: 0
B12: current state = 2 | C12: current state = 3 | D12: current state = 1 | F12: you may change
F13: values of top cells
B14: function | C14: return | D14: parameters | E14: example
B15: Energy After Matter | C15: Residual energy in MeV/u | D15: Zparticle, Aparticle Energy [MeV/u] Ztarget, Thickness [mg/cm2] | E15: =EnergyLossInMatter(Zparticle,Aparticle,energy,Ztarget,Thickness) -> 198.7666085 | F15: MeV/u
B16: Energy After Matter with option | C16: Residual energy in MeV/u | D16: Zparticle, Aparticle Energy [MeV/u], Ztarget Thickness [mg/cm2],option | E16: =EnergyLossInMatter_option(Zparticle,Aparticle,energy,Ztarget,Thickness,Energy_loss_option) -> 198.7482653 | F16: MeV/u
B17: Range In Matter | C17: Range in mg/cm2 | D17: Zparticle, Aparticle Energy [MeV/u] Ztarget | E17: =RangeInMatter(Zparticle,Aparticle,energy,Ztarget) -> 1127.975815 | F17: mg/cm2
B18: Range In Matter with option | C18: Range in mg/cm2 | D18: Zparticle, Aparticle Energy [MeV/u] Ztarget, option | E18: =RangeInMatter_option(Zparticle,Aparticle,energy,Ztarget,Range_option) -> 1057.349769 | F18: mg/cm2
B19: StragglingEnergy | C19: energy straggling in material [MeV/u] | D19: Zparticle, Aparticle Energy [MeV/u] Ztarget, Thickness [mg/cm2] | E19: =StragglingEnergy(Zparticle,Aparticle,energy,Ztarget,Thickness) -> 0.01697657605 | F19: MeV/u
B20: StragglingRange | C20: range straggling in material [mg/cm2] | D20: Zparticle, Aparticle Energy [MeV/u] Ztarget | E20: =StragglingRange(Zparticle,Aparticle,energy,Ztarget) -> 1.029977681 | F20: mg/cm2
B21: Stopping power | C21: Hubert - option=0 | D21: Zparticle, Aparticle Energy [MeV/u] Ztarget | E21: =StoppingPower(Zparticle,Aparticle,energy,Ztarget,0) -> 28.38456773 | F21: MeV/(mg/cm2)
B22: Stopping power | C22: Zigler - option=1 | D22: Zparticle, Aparticle Energy [MeV/u] Ztarget | E22: =StoppingPower(Zparticle,Aparticle,energy,Ztarget,1) -> 29.751978 | F22: MeV/(mg/cm2)
B23: Stopping power | C23: Atima - option=2 | D23: Zparticle, Aparticle Energy [MeV/u] Ztarget | E23: =StoppingPower(Zparticle,Aparticle,energy,Ztarget,2) -> 29.32344289 | F23: MeV/(mg/cm2)
B24: Stopping power | C24: Atima without LS - option=3 | D24: Zparticle, Aparticle Energy [MeV/u] Ztarget | E24: =StoppingPower(Zparticle,Aparticle,energy,Ztarget,3) -> 29.14435612 | F24: MeV/(mg/cm2)
B25: Isotope Mass | C25: get isotopic mass | D25: Z,A | E25: =MassIsotope(Zparticle,Aparticle) -> 238.0507882
B26: Mass | C26: get element mass | D26: Z | E26: =+Mass(Zparticle) -> 238.03
B27: Show_Z | C27: Element Name -> Z (int) | D27: Element Name | E27: =show_Z(E28) -> 92
B28: Show_Element | C28: Z (int) -> Element Name | D28: Atomic number | E28: =Show_Element(Zparticle) -> U
B29: Mg2Mkm | C29: mg/cm2 -> microns | D29: Thickness [mg/cm2] Ztarget | E29: =Mg2Mkm(Thickness,Ztarget) -> 43.08116491 | F29: micron
B30: Mkm2Mg | C30: microns -> mg/cm2 | D30: Thickness [micron] Ztarget | E30: =Mkm2Mg(E29,Ztarget) -> 10 | F30: mg/cm2
B31: Beta2Energy | C31: transformation Beta to Energy [MeV/u] | D31: beta | E31: =Beta2Energy(E32) -> 200
B32: Energy2Beta | C32: transformation Energy [MeV/u] to Beta | D32: Energy [MeV/u] | E32: =Energy2Beta(energy) -> 0.5676898
B33: Beta2Gamma | C33: transformation Beta to Gamma | D33: beta | E33: =Beta2Gamma(E32) -> 1.214708841
B34: Gamma2Beta | C34: transformation Gamma to Beta | D34: gamma | E34: =Gamma2Beta(E33) -> 0.5676898
B35: Gamma2Energy | C35: transformation Gamma to Energy [MeV/u] | D35: gamma | E35: =Gamma2Energy(E36) -> 200
B36: Energy2Gamma | C36: transformation Energy [MeV/u] to Gamma | D36: Energy [MeV/u] | E36: =Energy2Gamma(energy) -> 1.214708841
B37: Brho2Energy | C37: transformation Brho[Tm] to Energy [MeV/u] | D37: Brho [Tm] Mparticle, Qparticle | E37: =Brho2Energy(E38,Aparticle,Zparticle) -> 200
B38: Energy2Brho | C38: transformation Energy [MeV/u] to Brho [Tm] | D38: Energy [MeV/u] Mparticle, Qparticle | E38: =Energy2Brho(energy,Aparticle,Zparticle) -> 5.542832803
B39: Energy2Momentum | C39: transformation Energy [MeV/u] to Momentum [MeV/c] | D39: Energy [MeV/u] Mparticle | E39: =Energy2Momentum(energy,Aparticle) -> 152876.3512
B40: Momentum2Energy | C40: transformation Momentum[MeV/c] to Energy [MeV/u] | D40: Momentum [MeV/c] Mparticle | E40: =Momentum2Energy(E39,Aparticle) -> 200
B41: Brho2Momentum | C41: transformation Brho [Tm] to Momentum [MeV/c] | D41: Energy [MeV/u] Qparticle | E41: =Brho2Momentum(E38,Zparticle) -> 152876.3512
B42: Momentum2Brho | C42: transformation Momentum[MeV/c] to Brho [Tm] | D42: Momentum [MeV/c] Qparticle | E42: =Momentum2Brho(E41,Zparticle) -> 5.542832803
B43: EPAX 2.15 | C43: Cross section (EPAX 2.15) [mb] | D43: Zparticle, Aparticle, Ztarget, Atarget, Zfragment, Afragment | E43: =EPAX215(Aparticle,Zparticle,Atarget,Ztarget,Afragment,Zfragment) -> 0.005534301562 | F43: mb
B44: EPAX 3.01 | C44: Cross section (EPAX 3.01) [mb] | D44: Zparticle, Aparticle, Ztarget, Atarget, Zfragment, Afragment | E44: =EPAX301(Aparticle,Zparticle,Atarget,Ztarget,Afragment,Zfragment) -> 0.006489701585 | F44: mb
B45: Charge State Fraction* | C45: Charge State Fraction % | D45: Energy [MeV/u] Zparticle, Ztarget Zpart-Qpart | E45: =ChargeState(energy,Zparticle,Ztarget,ZmQ) -> 5.531225278 | F45: %
B46: Schwietz model for GAS* | C46: Charge State Fraction % | D46: Energy [MeV/u] Zparticle, Ztarget Zpart-Qpart | E46: =SchiwietzGas(energy,Zparticle,Ztarget,ZmQ) -> 32.36177564 | F46: %
B47: Charge State Fraction * with option | C47: Charge State Fraction % | D47: Energy [MeV/u] Zparticle, Ztarget Zpart-Qpart, Option | E47: =ChargeState_option(energy,Zparticle,Ztarget,ZmQ,Opt) -> 24.83172976 | F47: %
B48: Charge State <Q> * | C48: Average Charge State with option* | D48: Energy [MeV/u] Zparticle, Ztarget, option | E48: =Charge_Qmean(energy,Zparticle,Ztarget,Opt) -> 90.96239034
B49: Charge dQ * | C49: Charge State sigma dQ * | D49: Energy [MeV/u] Zparticle, Ztarget, option | E49: =Charge_dQ(energy,Zparticle,Ztarget,Opt) -> 0.9169399746
B51: version from 28-FEB-2013
B52: Oleg Tarasov | D52: Zfragment= | E52: 50
B53: tarasov@nscl.msu.edu | D53: Afragment= | E53: 120
B54: www.nscl.msu.edu/~tarasov | D54: Charge state option = | E54: 5
D55: Range option = | E55: 1
B56: code LISE++ | D56: Energy loss option = | E56: 1
B57: lise.nscl.msu.edu | E57: you may change
E58: values of top cells
B60: * - Equilibrium distribution is suggested
B62: old+78

Sheet Global
B2: GlobalCode(ZmQ_out; Aparticle; Zparticle; ZmQ_in; Energy; Atarget; Ztarget; Thickness; Option; Fast)
B4: names | D4: Description
B5: ZmQ_out= | C5: 103 | D5: Option (see bottom table)
B6: Aparticle= | C6: 238 | D6: Mass of projectile
B7: Zparticle= | C7: 92 | D7: Element number of proj.
B8: ZmQ_in= | C8: 3 | D8: initial input charge
B9: Energy= | C9: 300 | D9: MeV/u (init or final : depends from option')
B10: Atarget= | C10: 64 | D10: Mass of target
B11: Ztarget= | C11: 29 | D11: Element number of target
B12: Thickness= | C12: 1000 | D12: mg/cm2
B13: Option= | C13: 0 | D13: 0/1- at target (Einit/Efinal); 2/3 -equilibrium (Einit/Efinal)
B14: Fast= | C14: 0 | D14: 0-slow / 1-fast / 2 -superfast
B15: RESULT= | C15: =GLOBALCODE(ZmQ_out_g,Aparticle_g,Zparticle_g,ZmQ_in_g,Energy_g,Atarget_g,Ztarget_g,Thickness_g,Option_g,Fast_g) -> 300
B17: E init : initial energy of projectile before Equilibrium thickness
B18: E final : final energy of projectile after Equilibrium thickness
B20: Options | D20: RESULT | E20: Description | F20: Dimens
B21: ZmQ_out= | C21: 103 | D21: =GLOBALCODE(C21,Aparticle_g,Zparticle_g,ZmQ_in_g,Energy_g,Atarget_g,Ztarget_g,Thickness_g,Option_g,Fast_g) -> 206.1152066 | E21: Energy after/before target | F21: MeV/u
B22: ZmQ_out= | C22: 102 | D22: 118.3159102 | E22: Equilibrium thickness | F22: mg/cm2
B23: ZmQ_out= | C23: 101 | D23: 0.7116703559 | E23: dQ /st.deviation/
B24: ZmQ_out= | C24: 100 | D24: 90.2046472 | E24: <Q> /average/
B25: ZmQ_out= | C25: 0 | D25: 0.0394284101 | E25: Z - Q = 0 | F25: part
B26: ZmQ_out= | C26: =1+C25 -> 1 | D26: 0.2481125938 | E26: Z - Q = 1 | F26: part
B27: ZmQ_out= | C27: 2 | D27: 0.5997462344 | E27: Z - Q = 2 | F27: part
B28: ZmQ_out= | C28: 3 | D28: 0.103580531 | E28: Z - Q = 3 | F28: part
B29: ZmQ_out= | C29: 4 | D29: 0.008671302902 | E29: Z - Q = 4 | F29: part
B30: ZmQ_out= | C30: 5 | D30: 0.000445037857 | E30: Z - Q = 5 | F30: part
B31: ZmQ_out= | C31: 6 | D31: 1.549697039e-05 | E31: Z - Q = 6 | F31: part
B32: ZmQ_out= | C32: 7 | D32: -776 | E32: Z - Q = 7 | F32: part
D33: =+SUM(D25:D32) -> -775.0000004
B36: If result is equal -776,-777 or -778 --- you got error!
B37: check input parameters

Sheet ChargeStates -> MeanValue
A1: Target= | B1: 20
A2: Energy= | B2: 200 | C2: MeV/u
B4: Winger | C4: Leon | D4: Schima | E4: Global | F4: Schiwietz
A5: Zbeam | B5: 0 | C5: 1 | D5: 2 | E5: 3 | F5: 5
A6: 4 | B6: =$A6-[0]!Charge_Qmean(energy,$A6,target,B$5) -> 0 | C6: =$A6-[0]!Charge_Qmean(energy,$A6,target,C$5) -> 0 | D6: =$A6-[0]!Charge_Qmean(energy,$A6,target,D$5) -> 0.3369231667 | E6: =$A6-[0]!Charge_Qmean(energy,$A6,target,E$5) -> 2.089977524e-09 | F6: =$A6-[0]!Charge_Qmean(energy,$A6,target,F$5) -> 0.0005347839457
A7: =4+A6 -> 8 | B7: =$A7-[0]!Charge_Qmean(energy,$A7,target,B$5) -> 0 | C7: =$A7-[0]!Charge_Qmean(energy,$A7,target,C$5) -> 0 | D7: =$A7-[0]!Charge_Qmean(energy,$A7,target,D$5) -> 0.6256189101 | E7: =$A7-[0]!Charge_Qmean(energy,$A7,target,E$5) -> 2.966532309e-07 | F7: =$A7-[0]!Charge_Qmean(energy,$A7,target,F$5) -> 0
A8: 12 | B8: =$A8-[0]!Charge_Qmean(energy,$A8,target,B$5) -> 0 | C8: =$A8-[0]!Charge_Qmean(energy,$A8,target,C$5) -> 0 | D8: =$A8-[0]!Charge_Qmean(energy,$A8,target,D$5) -> 0.8913211512 | E8: =$A8-[0]!Charge_Qmean(energy,$A8,target,E$5) -> 1.229792017e-05 | F8: =$A8-[0]!Charge_Qmean(energy,$A8,target,F$5) -> 0
A9: 16 | B9: =$A9-[0]!Charge_Qmean(energy,$A9,target,B$5) -> 0 | C9: =$A9-[0]!Charge_Qmean(energy,$A9,target,C$5) -> 0 | D9: =$A9-[0]!Charge_Qmean(energy,$A9,target,D$5) -> 1.142409213 | E9: =$A9-[0]!Charge_Qmean(energy,$A9,target,E$5) -> 8.956908565e-05 | F9: =$A9-[0]!Charge_Qmean(energy,$A9,target,F$5) -> 0
A10: 20 | B10: =$A10-[0]!Charge_Qmean(energy,$A10,target,B$5) -> 1.831982388e-08 | C10: =$A10-[0]!Charge_Qmean(energy,$A10,target,C$5) -> 0 | D10: =$A10-[0]!Charge_Qmean(energy,$A10,target,D$5) -> 1.382868744 | E10: =$A10-[0]!Charge_Qmean(energy,$A10,target,E$5) -> 0.0003971411416 | F10: =$A10-[0]!Charge_Qmean(energy,$A10,target,F$5) -> 0
A11: 24 | B11: =$A11-[0]!Charge_Qmean(energy,$A11,target,B$5) -> 6.688139042e-05 | C11: =$A11-[0]!Charge_Qmean(energy,$A11,target,C$5) -> 0 | D11: =$A11-[0]!Charge_Qmean(energy,$A11,target,D$5) -> 1.615027963 | E11: =$A11-[0]!Charge_Qmean(energy,$A11,target,E$5) -> 0.001264007546 | F11: =$A11-[0]!Charge_Qmean(energy,$A11,target,F$5) -> 0
A12: 28 | B12: =$A12-[0]!Charge_Qmean(energy,$A12,target,B$5) -> 0.002112543197 | C12: =$A12-[0]!Charge_Qmean(energy,$A12,target,C$5) -> 0 | D12: =$A12-[0]!Charge_Qmean(energy,$A12,target,D$5) -> 1.840409299 | E12: =$A12-[0]!Charge_Qmean(energy,$A12,target,E$5) -> 0.003285369321 | F12: =$A12-[0]!Charge_Qmean(energy,$A12,target,F$5) -> 0
A13: 32 | B13: =$A13-[0]!Charge_Qmean(energy,$A13,target,B$5) -> 0.01140547648 | C13: =$A13-[0]!Charge_Qmean(energy,$A13,target,C$5) -> 0 | D13: =$A13-[0]!Charge_Qmean(energy,$A13,target,D$5) -> 2.060083147 | E13: =$A13-[0]!Charge_Qmean(energy,$A13,target,E$5) -> 0.007370936515 | F13: =$A13-[0]!Charge_Qmean(energy,$A13,target,F$5) -> 0.01780485602
A14: 36 | B14: =$A14-[0]!Charge_Qmean(energy,$A14,target,B$5) -> 0.03041377768 | C14: =$A14-[0]!Charge_Qmean(energy,$A14,target,C$5) -> 0 | D14: =$A14-[0]!Charge_Qmean(energy,$A14,target,D$5) -> 2.274841384 | E14: =$A14-[0]!Charge_Qmean(energy,$A14,target,E$5) -> 0.01484543252 | F14: =$A14-[0]!Charge_Qmean(energy,$A14,target,F$5) -> 0.04411235325
A15: 40 | B15: =$A15-[0]!Charge_Qmean(energy,$A15,target,B$5) -> 0.05939891703 | C15: =$A15-[0]!Charge_Qmean(energy,$A15,target,C$5) -> 0 | D15: =$A15-[0]!Charge_Qmean(energy,$A15,target,D$5) -> 2.485292408 | E15: =$A15-[0]!Charge_Qmean(energy,$A15,target,E$5) -> 0.02730434398 | F15: =$A15-[0]!Charge_Qmean(energy,$A15,target,F$5) -> 0.07815341342
A16: 44 | B16: =$A16-[0]!Charge_Qmean(energy,$A16,target,B$5) -> 0.09925162288 | C16: =$A16-[0]!Charge_Qmean(energy,$A16,target,C$5) -> 0.11753739 | D16: =$A16-[0]!Charge_Qmean(energy,$A16,target,D$5) -> 2.691917529 | E16: =$A16-[0]!Charge_Qmean(energy,$A16,target,E$5) -> 0.04705274023 | F16: =$A16-[0]!Charge_Qmean(energy,$A16,target,F$5) -> 0.12045454
A17: 48 | B17: =$A17-[0]!Charge_Qmean(energy,$A17,target,B$5) -> 0.1516123653 | C17: =$A17-[0]!Charge_Qmean(energy,$A17,target,C$5) -> 0.3165783472 | D17: =$A17-[0]!Charge_Qmean(energy,$A17,target,D$5) -> 2.895106505 | E17: =$A17-[0]!Charge_Qmean(energy,$A17,target,E$5) -> 0.07695203453 | F17: =$A17-[0]!Charge_Qmean(energy,$A17,target,F$5) -> 0.1714928546
A18: 52 | B18: =$A18-[0]!Charge_Qmean(energy,$A18,target,B$5) -> 0.2184147332 | C18: =$A18-[0]!Charge_Qmean(energy,$A18,target,C$5) -> 0.5552507198 | D18: =$A18-[0]!Charge_Qmean(energy,$A18,target,D$5) -> 3.095181023 | E18: =$A18-[0]!Charge_Qmean(energy,$A18,target,E$5) -> 0.1199384533 | F18: =$A18-[0]!Charge_Qmean(energy,$A18,target,F$5) -> 0.2316997247
A19: 56 | B19: =$A19-[0]!Charge_Qmean(energy,$A19,target,B$5) -> 0.3016188641 | C19: =$A19-[0]!Charge_Qmean(energy,$A19,target,C$5) -> 0.8394324118 | D19: =$A19-[0]!Charge_Qmean(energy,$A19,target,D$5) -> 3.292410841 | E19: =$A19-[0]!Charge_Qmean(energy,$A19,target,E$5) -> 0.1809632834 | F19: =$A19-[0]!Charge_Qmean(energy,$A19,target,F$5) -> 0.3014640695
A20: 60 | B20: =$A20-[0]!Charge_Qmean(energy,$A20,target,B$5) -> 0.4031022516 | C20: =$A20-[0]!Charge_Qmean(energy,$A20,target,C$5) -> 1.172308518 | D20: =$A20-[0]!Charge_Qmean(energy,$A20,target,D$5) -> 3.48702522 | E20: =$A20-[0]!Charge_Qmean(energy,$A20,target,E$5) -> 0.2628540794 | F20: =$A20-[0]!Charge_Qmean(energy,$A20,target,F$5) -> 0.3811353882
A21: 64 | B21: =$A21-[0]!Charge_Qmean(energy,$A21,target,B$5) -> 0.524621724 | C21: =$A21-[0]!Charge_Qmean(energy,$A21,target,C$5) -> 1.552462657 | D21: =$A21-[0]!Charge_Qmean(energy,$A21,target,D$5) -> 3.679221263 | E21: =$A21-[0]!Charge_Qmean(energy,$A21,target,E$5) -> 0.3717565397 | F21: =$A21-[0]!Charge_Qmean(energy,$A21,target,F$5) -> 0.47102655
A22: 68 | B22: =$A22-[0]!Charge_Qmean(energy,$A22,target,B$5) -> 0.6678032277 | C22: =$A22-[0]!Charge_Qmean(energy,$A22,target,C$5) -> 1.972302529 | D22: =$A22-[0]!Charge_Qmean(energy,$A22,target,D$5) -> 3.869170119 | E22: =$A22-[0]!Charge_Qmean(energy,$A22,target,E$5) -> 0.5221559079 | F22: =$A22-[0]!Charge_Qmean(energy,$A22,target,F$5) -> 0.5714163801
A23: 72 | B23: =$A23-[0]!Charge_Qmean(energy,$A23,target,B$5) -> 0.8341418473 | C23: =$A23-[0]!Charge_Qmean(energy,$A23,target,C$5) -> 2.417376206 | D23: =$A23-[0]!Charge_Qmean(energy,$A23,target,D$5) -> 4.057021708 | E23: =$A23-[0]!Charge_Qmean(energy,$A23,target,E$5) -> 0.6996520822 | F23: =$A23-[0]!Charge_Qmean(energy,$A23,target,F$5) -> 0.6825520646
A24: 76 | B24: =$A24-[0]!Charge_Qmean(energy,$A24,target,B$5) -> 1.025005443 | C24: =$A24-[0]!Charge_Qmean(energy,$A24,target,C$5) -> 2.867049419 | D24: =$A24-[0]!Charge_Qmean(energy,$A24,target,D$5) -> 4.242908365 | E24: =$A24-[0]!Charge_Qmean(energy,$A24,target,E$5) -> 0.8937184616 | F24: =$A24-[0]!Charge_Qmean(energy,$A24,target,F$5) -> 0.8046513953
A25: 80 | B25: =$A25-[0]!Charge_Qmean(energy,$A25,target,B$5) -> 1.241639528 | C25: =$A25-[0]!Charge_Qmean(energy,$A25,target,C$5) -> 3.296732015 | D25: =$A25-[0]!Charge_Qmean(energy,$A25,target,D$5) -> 4.42694771 | E25: =$A25-[0]!Charge_Qmean(energy,$A25,target,E$5) -> 1.098735238 | F25: =$A25-[0]!Charge_Qmean(energy,$A25,target,F$5) -> 0.9379048676
A26: 84 | B26: =$A26-[0]!Charge_Qmean(energy,$A26,target,B$5) -> 1.485172592 | C26: =$A26-[0]!Charge_Qmean(energy,$A26,target,C$5) -> 3.681418217 | D26: =$A26-[0]!Charge_Qmean(energy,$A26,target,D$5) -> 4.609244926 | E26: =$A26-[0]!Charge_Qmean(energy,$A26,target,E$5) -> 1.321498556 | F26: =$A26-[0]!Charge_Qmean(energy,$A26,target,F$5) -> 1.082477646
A27: 88 | B27: =$A27-[0]!Charge_Qmean(energy,$A27,target,B$5) -> 1.756621604 | C27: =$A27-[0]!Charge_Qmean(energy,$A27,target,C$5) -> 3.999868961 | D27: =$A27-[0]!Charge_Qmean(energy,$A27,target,D$5) -> 4.789894597 | E27: =$A27-[0]!Charge_Qmean(energy,$A27,target,E$5) -> 1.502379474 | F27: =$A27-[0]!Charge_Qmean(energy,$A27,target,F$5) -> 1.238511406
A28: 92 | B28: =$A28-[0]!Charge_Qmean(energy,$A28,target,B$5) -> 2.056897622 | C28: =$A28-[0]!Charge_Qmean(energy,$A28,target,C$5) -> 4.238477051 | D28: =$A28-[0]!Charge_Qmean(energy,$A28,target,D$5) -> 4.968982213 | E28: =$A28-[0]!Charge_Qmean(energy,$A28,target,E$5) -> 1.66265329 | F28: =$A28-[0]!Charge_Qmean(energy,$A28,target,F$5) -> 1.406126056
A29: 96 | B29: =$A29-[0]!Charge_Qmean(energy,$A29,target,B$5) -> 2.386811461 | C29: =$A29-[0]!Charge_Qmean(energy,$A29,target,C$5) -> 4.393844667 | D29: =$A29-[0]!Charge_Qmean(energy,$A29,target,D$5) -> 5.146585411 | E29: =$A29-[0]!Charge_Qmean(energy,$A29,target,E$5) -> 1.840689028 | F29: =$A29-[0]!Charge_Qmean(energy,$A29,target,F$5) -> 1.585421361
A31: Beam (Z) = | B31: 82
A32: Energy = | B32: 100 | C32: MeV/u
B34: Winger | C34: Leon | D34: Schima | E34: Global | F34: Schiwietz
A35: Ztarget | B35: 0 | C35: 1 | D35: 2 | E35: 3 | F35: 5
A36: 4 | B36: =BeamZ-[0]!Charge_Qmean(Energy2,BeamZ,$A36,B$5) -> 2.12874732 | C36: =BeamZ-[0]!Charge_Qmean(Energy2,BeamZ,$A36,C$5) -> 3.054825822 | D36: =BeamZ-[0]!Charge_Qmean(Energy2,BeamZ,$A36,D$5) -> 0 | E36: =BeamZ-[0]!Charge_Qmean(Energy2,BeamZ,$A36,E$5) -> 1.995076375 | F36: =BeamZ-[0]!Charge_Qmean(Energy2,BeamZ,$A36,F$5) -> 0.9363875805
A37: 6 | B37: =BeamZ-[0]!Charge_Qmean(Energy2,BeamZ,$A37,B$5) -> 2.297088036 | C37: =BeamZ-[0]!Charge_Qmean(Energy2,BeamZ,$A37,C$5) -> 2.276692159 | D37: =BeamZ-[0]!Charge_Qmean(Energy2,BeamZ,$A37,D$5) -> 0.0008084002454 | E37: =BeamZ-[0]!Charge_Qmean(Energy2,BeamZ,$A37,E$5) -> 1.899370306 | F37: =BeamZ-[0]!Charge_Qmean(Energy2,BeamZ,$A37,F$5) -> 1.236780622
A38: 13 | B38: =BeamZ-[0]!Charge_Qmean(Energy2,BeamZ,$A38,B$5) -> 2.89490407 | C38: =BeamZ-[0]!Charge_Qmean(Energy2,BeamZ,$A38,C$5) -> 3.744107701 | D38: =BeamZ-[0]!Charge_Qmean(Energy2,BeamZ,$A38,D$5) -> 2.222935168 | E38: =BeamZ-[0]!Charge_Qmean(Energy2,BeamZ,$A38,E$5) -> 1.976808172 | F38: =BeamZ-[0]!Charge_Qmean(Energy2,BeamZ,$A38,F$5) -> 1.960405682
A39: 14 | B39: =BeamZ-[0]!Charge_Qmean(Energy2,BeamZ,$A39,B$5) -> 2.960237238 | C39: =BeamZ-[0]!Charge_Qmean(Energy2,BeamZ,$A39,C$5) -> 4.006868273 | D39: =BeamZ-[0]!Charge_Qmean(Energy2,BeamZ,$A39,D$5) -> 2.508082514 | E39: =BeamZ-[0]!Charge_Qmean(Energy2,BeamZ,$A39,E$5) -> 2.019849574 | F39: =BeamZ-[0]!Charge_Qmean(Energy2,BeamZ,$A39,F$5) -> 2.040903078
A40: =4+A39 -> 18 | B40: =BeamZ-[0]!Charge_Qmean(Energy2,BeamZ,$A40,B$5) -> 3.181170014 | C40: =BeamZ-[0]!Charge_Qmean(Energy2,BeamZ,$A40,C$5) -> 4.828671118 | D40: =BeamZ-[0]!Charge_Qmean(Energy2,BeamZ,$A40,D$5) -> 3.567923562 | E40: =BeamZ-[0]!Charge_Qmean(Energy2,BeamZ,$A40,E$5) -> 2.502370744 | F40: =BeamZ-[0]!Charge_Qmean(Energy2,BeamZ,$A40,F$5) -> 2.329082014
A41: =4+A40 -> 22 | B41: =BeamZ-[0]!Charge_Qmean(Energy2,BeamZ,$A41,B$5) -> 3.35124704 | C41: =BeamZ-[0]!Charge_Qmean(Energy2,BeamZ,$A41,C$5) -> 5.32408579 | D41: =BeamZ-[0]!Charge_Qmean(Energy2,BeamZ,$A41,D$5) -> 4.498567271 | E41: =BeamZ-[0]!Charge_Qmean(Energy2,BeamZ,$A41,E$5) -> 2.371676223 | F41: =BeamZ-[0]!Charge_Qmean(Energy2,BeamZ,$A41,F$5) -> 2.576313633
A42: 28 | B42: =BeamZ-[0]!Charge_Qmean(Energy2,BeamZ,$A42,B$5) -> 3.539761852 | C42: =BeamZ-[0]!Charge_Qmean(Energy2,BeamZ,$A42,C$5) -> 5.689808504 | D42: =BeamZ-[0]!Charge_Qmean(Energy2,BeamZ,$A42,D$5) -> 5.652287823 | E42: =BeamZ-[0]!Charge_Qmean(Energy2,BeamZ,$A42,E$5) -> 2.561803447 | F42: =BeamZ-[0]!Charge_Qmean(Energy2,BeamZ,$A42,F$5) -> 2.893874208
A43: 29 | B43: =BeamZ-[0]!Charge_Qmean(Energy2,BeamZ,$A43,B$5) -> 3.565243302 | C43: =BeamZ-[0]!Charge_Qmean(Energy2,BeamZ,$A43,C$5) -> 5.724360092 | D43: =BeamZ-[0]!Charge_Qmean(Energy2,BeamZ,$A43,D$5) -> 5.816312663 | E43: =BeamZ-[0]!Charge_Qmean(Energy2,BeamZ,$A43,E$5) -> 2.558145785 | F43: =BeamZ-[0]!Charge_Qmean(Energy2,BeamZ,$A43,F$5) -> 2.941956373
A44: 32 | B44: =BeamZ-[0]!Charge_Qmean(Energy2,BeamZ,$A44,B$5) -> 3.633571125 | C44: =BeamZ-[0]!Charge_Qmean(Energy2,BeamZ,$A44,C$5) -> 5.800858604 | D44: =BeamZ-[0]!Charge_Qmean(Energy2,BeamZ,$A44,D$5) -> 6.259938183 | E44: =BeamZ-[0]!Charge_Qmean(Energy2,BeamZ,$A44,E$5) -> 2.634925493 | F44: =BeamZ-[0]!Charge_Qmean(Energy2,BeamZ,$A44,F$5) -> 3.079390392
A45: 36 | B45: =BeamZ-[0]!Charge_Qmean(Energy2,BeamZ,$A45,B$5) -> 3.708585212 | C45: =BeamZ-[0]!Charge_Qmean(Energy2,BeamZ,$A45,C$5) -> 5.860098678 | D45: =BeamZ-[0]!Charge_Qmean(Energy2,BeamZ,$A45,D$5) -> 6.738391204 | E45: =BeamZ-[0]!Charge_Qmean(Energy2,BeamZ,$A45,E$5) -> 3.08685307 | F45: =BeamZ-[0]!Charge_Qmean(Energy2,BeamZ,$A45,F$5) -> 3.248779669
A46: 47 | B46: =BeamZ-[0]!Charge_Qmean(Energy2,BeamZ,$A46,B$5) -> 3.846748009 | C46: =BeamZ-[0]!Charge_Qmean(Energy2,BeamZ,$A46,C$5) -> 5.915226061 | D46: =BeamZ-[0]!Charge_Qmean(Energy2,BeamZ,$A46,D$5) -> 7.38796323 | E46: =BeamZ-[0]!Charge_Qmean(Energy2,BeamZ,$A46,E$5) -> 2.736161122 | F46: =BeamZ-[0]!Charge_Qmean(Energy2,BeamZ,$A46,F$5) -> 3.65215963
A47: 54 | B47: =BeamZ-[0]!Charge_Qmean(Energy2,BeamZ,$A47,B$5) -> 3.898887929 | C47: =BeamZ-[0]!Charge_Qmean(Energy2,BeamZ,$A47,C$5) -> 5.922975102 | D47: =BeamZ-[0]!Charge_Qmean(Energy2,BeamZ,$A47,D$5) -> 7.292612723 | E47: =BeamZ-[0]!Charge_Qmean(Energy2,BeamZ,$A47,E$5) -> 2.869841608 | F47: =BeamZ-[0]!Charge_Qmean(Energy2,BeamZ,$A47,F$5) -> 3.87311845
A48: 63 | B48: =BeamZ-[0]!Charge_Qmean(Energy2,BeamZ,$A48,B$5) -> 3.939098884 | C48: =BeamZ-[0]!Charge_Qmean(Energy2,BeamZ,$A48,C$5) -> 5.925840697 | D48: =BeamZ-[0]!Charge_Qmean(Energy2,BeamZ,$A48,D$5) -> 6.588631187 | E48: =BeamZ-[0]!Charge_Qmean(Energy2,BeamZ,$A48,E$5) -> 2.788310023 | F48: =BeamZ-[0]!Charge_Qmean(Energy2,BeamZ,$A48,F$5) -> 4.127147563
A49: 73 | B49: =BeamZ-[0]!Charge_Qmean(Energy2,BeamZ,$A49,B$5) -> 3.959008958 | C49: =BeamZ-[0]!Charge_Qmean(Energy2,BeamZ,$A49,C$5) -> 5.926550963 | D49: =BeamZ-[0]!Charge_Qmean(Energy2,BeamZ,$A49,D$5) -> 5.039320278 | E49: =BeamZ-[0]!Charge_Qmean(Energy2,BeamZ,$A49,E$5) -> 2.798333177 | F49: =BeamZ-[0]!Charge_Qmean(Energy2,BeamZ,$A49,F$5) -> 4.378409753
A50: 74 | B50: =BeamZ-[0]!Charge_Qmean(Energy2,BeamZ,$A50,B$5) -> 3.959900838 | C50: =BeamZ-[0]!Charge_Qmean(Energy2,BeamZ,$A50,C$5) -> 5.92657753 | D50: =BeamZ-[0]!Charge_Qmean(Energy2,BeamZ,$A50,D$5) -> 4.839977601 | E50: =BeamZ-[0]!Charge_Qmean(Energy2,BeamZ,$A50,E$5) -> 2.795454877 | F50: =BeamZ-[0]!Charge_Qmean(Energy2,BeamZ,$A50,F$5) -> 4.402029221
A51: 79 | B51: =BeamZ-[0]!Charge_Qmean(Energy2,BeamZ,$A51,B$5) -> 3.961905315 | C51: =BeamZ-[0]!Charge_Qmean(Energy2,BeamZ,$A51,C$5) -> 5.926661848 | D51: =BeamZ-[0]!Charge_Qmean(Energy2,BeamZ,$A51,D$5) -> 3.722141714 | E51: =BeamZ-[0]!Charge_Qmean(Energy2,BeamZ,$A51,E$5) -> 2.772729477 | F51: =BeamZ-[0]!Charge_Qmean(Energy2,BeamZ,$A51,F$5) -> 4.516506868
A52: 82 | B52: =BeamZ-[0]!Charge_Qmean(Energy2,BeamZ,$A52,B$5) -> 3.961341869 | C52: =BeamZ-[0]!Charge_Qmean(Energy2,BeamZ,$A52,C$5) -> 5.926688076 | D52: =BeamZ-[0]!Charge_Qmean(Energy2,BeamZ,$A52,D$5) -> 2.954542177 | E52: =BeamZ-[0]!Charge_Qmean(Energy2,BeamZ,$A52,E$5) -> 2.754088236 | F52: =BeamZ-[0]!Charge_Qmean(Energy2,BeamZ,$A52,F$5) -> 4.582483033
A53: 92 | B53: =BeamZ-[0]!Charge_Qmean(Energy2,BeamZ,$A53,B$5) -> 3.95166858 | C53: =BeamZ-[0]!Charge_Qmean(Energy2,BeamZ,$A53,C$5) -> 5.926722053 | D53: =BeamZ-[0]!Charge_Qmean(Energy2,BeamZ,$A53,D$5) -> 0 | E53: =BeamZ-[0]!Charge_Qmean(Energy2,BeamZ,$A53,E$5) -> 2.888542428 | F53: =BeamZ-[0]!Charge_Qmean(Energy2,BeamZ,$A53,F$5) -> 4.789441491

Sheet ReactionCalculation
B1: name | C1: definition | E1: formula | F1: SI | G1: =+TEXT(G2,"0")&G4&"+"&TEXT(G14,"0")&G16 -> 24O+2H | H1: 24O+2H | I1: 24O+2H | J1: 48Ca+9Be | K1: 48Ca+9Be | L1: 4He+22Ne | M1: 4He+22Ne
B2: Ap | G2: 24 | H2: 24 | I2: 24 | J2: 48 | K2: 48 | L2: 4 | M2: 4
B3: Zp | G3: 8 | H3: 8 | I3: 8 | J3: 20 | K3: 20 | L3: 2 | M3: 2
B4: Name_p | G4: =Show_Element(G3) -> O | H4: =Show_Element(H3) -> O | I4: O | J4: Ca | K4: Ca | L4: He | M4: He
B5: Mp | C5: Mass | F5: aem | G5: =MassIsotope(G3,G2) -> 24.02047248 | H5: =MassIsotope(H3,H2) -> 24.02047248 | I5: 24.02047248 | J5: 47.95253433 | K5: 47.95253433 | L5: 4.002603237 | M5: 4.002603237
B6: dEp | C6: MassExcess | F6: MeV | G6: =+(G5-G2)*aem -> 19.06999969 | H6: =+(H5-H2)*aem -> 19.06999969 | I6: 19.06999969 | J6: -44.2140007 | K6: -44.2140007 | L6: 2.424900055 | M6: 2.424900055
B7: Ap3 | C7: Ap^(1/3) | E7: Ap^(1/3) | G7: =+Ap^(1/3) -> 2.884499141 | H7: 2.884499141 | I7: 2.884499141 | J7: 3.634241186 | K7: 3.634241186 | L7: 1.587401052 | M7: 1.587401052
B8: Rp | C8: equivalent sharp radius(calc) | D8: Wilcke | E8: 1.28*Ap3-0.76+0.8/Ap3 | F8: fm | G8: =1.28*Ap3_- 0.76+0.8/Ap3_ -> 3.20950341 | H8: 3.20950341 | I8: 3.20950341 | J8: 4.111957201 | K8: 4.111957201 | L8: 1.775841766 | M8: 1.775841766
B9: Rp1 | C9: equivalent sharp radius(calc) | D9: Hodgson | E9: (1.13+0.0002*Ap)*Ap3 | F9: fm | G9: =+(1.13+0.0002*Ap)*Ap3_ -> 3.273329625 | H9: 3.273329625 | I9: 3.273329625 | J9: 4.141581255 | K9: 4.141581255 | L9: 1.79503311 | M9: 1.79503311
B10: Cp | C10: matter half-density radius(calc) | D10: Wilcke | E10: Rp*(1-(1/Rp)^2) | F10: fm | G10: =+Rp*(1- (1/Rp)^2) -> 2.897928729 | H10: 2.897928729 | I10: 2.897928729 | J10: 3.868764008 | K10: 3.868764008 | L10: 1.212728533 | M10: 1.212728533
B11: Cp1 | C11: matter half-density radius(calc) | D11: Hodgson | E11: Rp1*(1-(1/Rp1)^2) | F11: fm | G11: =+_Rp1*(1- (1/_Rp1)^2) -> 2.967830297 | H11: 2.967830297 | I11: 2.967830297 | J11: 3.900127584 | K11: 3.900127584 | L11: 1.237940321 | M11: 1.237940321
B12: Cp2 | C12: matter half-density radius(calc) | E12: 1.18*Ap3-0.48 | F12: fm | G12: =1.18* Ap3_ -0.48 -> 2.923708986 | H12: 2.923708986 | I12: 2.923708986 | J12: 3.808404599 | K12: 3.808404599 | L12: 1.393133241 | M12: 1.393133241
B13: Rpcharge | C13: charge radius | D13: Hodgson | E13: 1.12*Ap3+2.009/Ap3-1.513/Ap | F13: fm | G13: =1.12* Ap3_+2.009/Ap3_-1.513/ Ap -> 3.864078771 | H13: 3.864078771 | I13: 3.864078771 | J13: 4.591626948 | K13: 4.591626948 | L13: 2.665229873 | M13: 2.665229873
B14: At | G14: 2 | H14: 2 | I14: 2 | J14: 9 | K14: 9 | L14: 22 | M14: 22
B15: Zt | G15: 1 | H15: 1 | I15: 1 | J15: 4 | K15: 4 | L15: 10 | M15: 10
B16: Name_t | G16: =Show_Element(G15) -> H | H16: H | I16: H | J16: Be | K16: Be | L16: Ne | M16: Ne
B17: Mt | C17: Mass | F17: aem | G17: =MassIsotope(G15,G14) -> 2.01410175 | H17: =MassIsotope(H15,H14) -> 2.01410175 | I17: 2.01410175 | J17: 9.012182146 | K17: 9.012182146 | L17: 21.99138513 | M17: 21.99138513
B18: dEt | C18: MassExcess | F18: MeV | G18: =+(G17-G14)*aem -> 13.13570023 | H18: 13.13570023 | I18: 13.13570023 | J18: 11.34759998 | K18: 11.34759998 | L18: -8.024700165 | M18: -8.024700165
B19: At3 | C19: At^(1/3) | E19: At^(1/3) | G19: =+At^(1/3) -> 1.25992105 | H19: 1.25992105 | I19: 1.25992105 | J19: 2.080083823 | K19: 2.080083823 | L19: 2.802039331 | M19: 2.802039331
B20: Rt | C20: equivalent sharp radius(calc) | D20: Wilcke | E20: 1.28*At3-0.76+0.8/At3 | F20: fm | G20: =1.28*At3_- 0.76+0.8/At3_ -> 1.487659365 | H20: 1.487659365 | I20: 1.487659365 | J20: 2.287107179 | K20: 2.287107179 | L20: 3.112116685 | M20: 3.112116685
B21: Rt1 | C21: equivalent sharp radius(calc) | D21: Hodgson | E21: (1.13+0.0002*At)*At3 | F21: fm | G21: =+(1.13+0.0002*At)*At3_ -> 1.424214755 | H21: 1.424214755 | I21: 1.424214755 | J21: 2.354238871 | K21: 2.354238871 | L21: 3.178633417 | M21: 3.178633417
B22: Ct | C22: matter half-density radius(calc) | D22: Wilcke | E22: Rt*(1-(1/Rt)^2) | F22: fm | G22: =+Rt*(1- (1/Rt)^2) -> 0.8154624735 | H22: 0.8154624735 | I22: 0.8154624735 | J22: 1.849873625 | K22: 1.849873625 | L22: 2.790791973 | M22: 2.790791973
B23: Ct1 | C23: matter half-density radius(calc) | D23: Hodgson | E23: Rt1*(1-(1/Rt1)^2) | F23: fm | G23: =+_Rt1*(1- (1/_Rt1)^2) -> 0.7220734544 | H23: 0.7220734544 | I23: 0.7220734544 | J23: 1.929473138 | K23: 1.929473138 | L23: 2.86403281 | M23: 2.86403281
B24: Ct2 | C24: matter half-density radius(calc) | E24: 1.18*At3-0.48 | F24: fm | G24: =1.18* At3_ -0.48 -> 1.006706839 | H24: 1.006706839 | I24: 1.006706839 | J24: 1.974498911 | K24: 1.974498911 | L24: 2.82640641 | M24: 2.82640641
B25: Rtcharge | C25: charge radius | D25: Hodgson | E25: 1.12*At3+2.009/At3-1.513/At | F25: fm | G25: =1.12* At3_+2.009/At3_-1.513/ At -> 2.249155933 | H25: 2.249155933 | I25: 2.249155933 | J25: 3.127409233 | K25: 3.127409233 | L25: 3.786489125 | M25: 3.786489125
B26: Ac | E26: Ap+At | G26: =+G14+G2 -> 26 | H26: 26 | I26: 26 | J26: 57 | K26: 57 | L26: 26 | M26: 26
B27: Zc | E27: Zp+Zt | G27: 9 | H27: 9 | I27: 9 | J27: 24 | K27: 24 | L27: 12 | M27: 12
B28: Name_t | G28: =Show_Element(G27) -> F | H28: F | I28: F | J28: Cr | K28: Cr | L28: Mg | M28: Mg
B29: Mc | C29: Mass | F29: aem | G29: =MassIsotope(G27,G26) -> 26.01961365 | H29: =MassIsotope(H27,H26) -> 26.01961365 | I29: 26.01961365 | J29: 56.94361307 | K29: 56.94361307 | L29: 25.98259292 | M29: 25.98259292
B30: dEc | C30: MassExcess | F30: MeV | G30: =+(G29-G26)*aem -> 18.27000046 | H30: 18.27000046 | I30: 18.27000046 | J30: -52.52410126 | K30: -52.52410126 | L30: -16.21459961 | M30: -16.21459961
B31: Q | C31: ground state Q-value for fusion | E31: dEt+dEp-dEcomp | F31: MeV | G31: =+dEt+dEp-dEc -> 13.93569946 | H31: 13.93569946 | I31: 13.93569946 | J31: 19.65770054 | K31: 19.65770054 | L31: 10.6147995 | M31: 10.6147995
B32: m | C32: reduced mass number | E32: Ap*At/(Ap+At) | G32: =+Ap*At/(Ap+At) -> 1.846153846 | H32: 1.846153846 | I32: 1.846153846 | J32: 7.578947368 | K32: 7.578947368 | L32: 3.384615385 | M32: 3.384615385
B33: Ac3 | C33: Ac^(1/3) | E33: Ac^(1/3) | G33: =+Ac^(1/3) -> 2.962496068 | H33: 2.962496068 | I33: 2.962496068 | J33: 3.848501131 | K33: 3.848501131 | L33: 2.962496068 | M33: 2.962496068
B34: AtAp3 | C34: At^(1/3)+Ap^(1/3) | E34: At3+Ap3 | G34: =+At3_+Ap3_ -> 4.144420191 | H34: 4.144420191 | I34: 4.144420191 | J34: 5.714325009 | K34: 5.714325009 | L34: 4.389440383 | M34: 4.389440383
B35: RtRp | C35: sum Rt and Rp | E35: Rt+Rp | F35: fm | G35: =+Rt+Rp -> 4.697162774 | H35: 4.697162774 | I35: 4.697162774 | J35: 6.39906438 | K35: 6.39906438 | L35: 4.887958452 | M35: 4.887958452
B36: Rint | C36: interaction radius | D36: Wilcke | E36: Ct+Cp+4.49-(Ct+Cp)/6.35 | F36: fm | G36: =+Ct+Cp+4.49-(Ct+Cp)/6.35 -> 7.618605186 | H36: 7.618605186 | I36: 7.618605186 | J36: 9.308064778 | K36: 9.308064778 | L36: 7.863044835 | M36: 7.863044835
B37: Rn1 | C37: interaction radius | D37: Hodgson | E37: 1.68*AtAp | F37: fm | G37: =1.68*AtAp3 -> 6.96262592 | H37: 6.96262592 | I37: 6.96262592 | J37: 9.600066015 | K37: 9.600066015 | L37: 7.374259843 | M37: 7.374259843
B38: Rn2 | C38: interaction radius | D38: Hodgson | E38: Cp1+Ct1+3.2 | F38: fm | G38: =+Cp1_+Ct1_+3.2 -> 6.889903751 | H38: 6.889903751 | I38: 6.889903751 | J38: 9.029600721 | K38: 9.029600721 | L38: 7.301973132 | M38: 7.301973132
B39: Rbarrier | C39: fusion barrier radius for s-wav. | D39: Wilcke | E39: Rint-0.3117*(Zp*Zt)^(0.2122) | F39: fm | G39: =+Rint-IF(Zp*Zt<500,0.3117*(Zp*Zt)^(0.2122),1.096+1.391*Zp*Zt/10000) -> 7.134017363 | H39: 7.134017363 | I39: 7.134017363 | J39: 8.51816408 | K39: 8.51816408 | L39: 7.274451463 | M39: 7.274451463
B40: Rc | C40: coulomb radius from "LNP" | D40: LNP | E40: 0.5+1.36*AtAp3 | F40: fm | G40: =0.5+1.36*AtAp3 -> 6.136411459 | H40: 6.136411459 | I40: 6.136411459 | J40: 8.271482012 | K40: 8.271482012 | L40: 6.46963892 | M40: 6.46963892
B41: Ro | E41: Rint/(At^(1/3)+Ap^(1/3)) | F41: fm | G41: =+Rint/AtAp3 -> 1.838280106 | H41: 1.838280106 | I41: 1.838280106 | J41: 1.628900135 | K41: 1.628900135 | L41: 1.79135474 | M41: 1.79135474
B42: <C> | C42: reduced half-density radius | E42: Ct*Cp/(Ct+Cp) | F42: fm | G42: =+Ct*Cp/(Ct+Cp) -> 0.6363865266 | H42: 0.6363865266 | I42: 0.6363865266 | J42: 1.251473683 | K42: 1.251473683 | L42: 0.8453742273 | M42: 0.8453742273
B43: VC | C43: BSS Coulomb pot. at r=Rint | E43: 1.438*Zp*Zt/Rint | F43: MeV | G43: =1.438*Zp*Zt/Rint -> 1.509987684 | H43: 1.509987684 | I43: 1.509987684 | J43: 12.35917484 | K43: 12.35917484 | L43: 3.657616178 | M43: 3.657616178
B44: VC_Rc | C44: BSS Coulomb pot. at r=Rc | E44: 1.438*Zp*Zt/Rc | F44: MeV | G44: =1.438*Zp*Zt/Rc_ -> 1.874711316 | H44: 1.874711316 | I44: 1.874711316 | J44: 13.90802759 | K44: 13.90802759 | L44: 4.445379465 | M44: 4.445379465
B45: VC_Rbar | C45: total conserv. potential at Rbar | E45: 1.438*Zp*Zt/Rbar | F45: MeV | G45: =1.438*Zp*Zt/Rbar -> 1.612555649 | H45: 1.612555649 | I45: 1.612555649 | J45: 13.50525758 | K45: 13.50525758 | L45: 3.953562704 | M45: 3.953562704
B46: Xf | C46: Saddle point (fissility parameter) | E46: Z^2/A/50.13(1-7.826(N-Z)^2/A^2 | G46: =+Zc^2/Ac/50.13*(1-1.7826*((Ac-2*Zc)^2)/(Ac^2)) -> 0.05165790792 | H46: 0.05165790792 | I46: 0.05165790792 | J46: 0.1926225731 | K46: 0.1926225731 | L46: 0.1093166216 | M46: 0.1093166216
B47: TKE | C47: fission TKE for simmet. fission | E47: 0.1071*Zc^2/Ac3+22.3 | F47: MeV | G47: =0.1071*Zc^2/Ac3_+22.3 -> 25.22830768 | H47: 25.22830768 | I47: 25.22830768 | J47: 38.32951328 | K47: 38.32951328 | L47: 27.50588033 | M47: 27.50588033
B48: Elab | F48: MeV | G48: =+Elab_A*Mp -> 120.1023624 | H48: =+Elab_A*Mp -> 240.2047248 | I48: 480.4094496 | J48: 959.0506866 | K48: 1438.57603 | L48: 20.01301618 | M48: 40.02603237
B49: Elab / Mp | C49: Energy per nucleon | E49: Elab / Ap | F49: MeV / u | G49: 5 | H49: 10 | I49: 20 | J49: 20 | K49: 30 | L49: 5 | M49: 10
B50: Ecm | C50: Energy SCM | E50: Mt*Elab/ (Mt+Mp) | F50: MeV | G50: =+Mt*Elab/(Mt+Mp) -> 9.291428244 | H50: =+Mt*Elab/(Mt+Mp) -> 18.58285649 | I50: 37.16571297 | J50: 151.7279469 | K50: 227.5919203 | L50: 16.9313743 | M50: 33.86274859
B51: Ecm+Q | C51: Excitation Energy | E51: Ecm+Q | F51: MeV | G51: =+Ecm+Q -> 23.22712771 | H51: 32.51855595 | I51: 51.10141244 | J51: 171.3856474 | K51: 247.2496208 | L51: 27.5461738 | M51: 44.47754809
B52: ETA | C52: coulomb parameter | D52: Wilcke | E52: Zp*Zt*e*e/h/v | G52: =0.15746*Zp*Zt*(Mp/Elab)^0.5 -> 0.563346022 | H52: =0.15746*Zp*Zt*(Mp/Elab)^0.5 -> 0.3983457923 | I52: 0.281673011 | J52: 2.81673011 | K52: 2.299850504 | L52: 1.408365055 | M52: 0.9958644807
B53: k | C53: asym. wave number in the CMS | D53: Wilcke | E53: (2*mu*m_nuclon*Ecm/h/h)^(1/2) | F53: 1 / fm | G53: =0.2187*Mt*(Mp*Elab)^0.5/(Mt+Mp) -> 0.9087538381 | H53: =0.2187*Mt*(Mp*Elab)^0.5/(Mt+Mp) -> 1.285172003 | I53: 1.817507676 | J53: 7.419922452 | K53: 9.087511969 | L53: 1.655983448 | M53: 2.341914251
B54: a | C54: parameter | D54: Wilcke-Hod | E54: Zt*Zp*e*e/(mv^2) --- ETA/k | F54: fm | G54: =+ETA/k -> 0.6199104734 | H54: 0.3099552367 | I54: 0.1549776183 | J54: 0.3796171898 | K54: 0.2530781265 | L54: 0.8504704905 | M54: 0.4252352452
B55: QP-CM | C55: quarterpoint angle in the CMS | D55: Wilcke | E55: 2*arcsin(ETA/(k*Rint-ETA)) | F55: deg | G55: =IF(Ecm<VC,180,2*ASIN(ETA/(k*Rint-ETA))*180/PI()) -> 10.16328427 | H55: 4.861213711 | I55: 2.379593992 | J55: 4.873640392 | K55: 3.203140452 | L55: 13.9317224 | M55: 6.555015187
B56: Qgr | C56: grazing angle in the CMS(LNF) | D56: LNF | E56: 2*ATAN( ETA / Lmax ) | F56: deg | G56: =2*ATAN( ETA/Lmax)*180/PI() -> 10.16328427 | H56: 4.861213711 | I56: 2.379593992 | J56: 4.873640392 | K56: 3.203140452 | L56: 13.9317224 | M56: 6.555015187
B57: Qcr | C57: critical angle | E57: 2*asin(a/(Rint-a) | F57: deg | G57: =+ASIN(a/(Rint-a))*2*180/PI() -> 10.16328427 | H57: 4.861213711 | I57: 2.379593992 | J57: 4.873640392 | K57: 3.203140452 | L57: 13.9317224 | M57: 6.555015187
B58: LcriticalF | C58: crit.ang.momentum for fusion | E58: k*RtRp*(1-2a/RtRp)^0.5-0.5 | F58: h/2pi | G58: =+k*RtRp*(1-2*a/RtRp)^0.5-0.5 -> 3.162142366 | H58: 5.124227174 | I58: 7.750649701 | J58: 44.07492415 | K58: 55.30435217 | L58: 6.035998841 | M58: 9.903760894
B59: Lmax | C59: graz.ang.momentum by QP-CM | D59: Wilcke | E59: ETA*cot(QP-CM/2) | F59: h/2pi | G59: =+ETA/TAN(QP_CM*PI()/180/2) -> 6.335092324 | H59: 9.384421695 | I59: 13.5622757 | J59: 66.18848117 | K59: 82.25515399 | L59: 11.52698888 | M59: 17.39022114
B60: SGMAR | C60: reaction CS derived from Lmax | E60: (pi/k^2)*(Lmax+1/2)^2 | F60: mb | G60: =+(Lmax+1/2)^2*(PI()/k^2)*10 -> 1777.240194 | H60: 1858.360181 | I60: 1880.652613 | J60: 2537.773119 | K60: 2605.253472 | L60: 1657.111414 | M60: 1833.324371
B61: SGcr | C61: critical CS | E61: pi()/k/k*(Lcr+0.5)^2 | F61: mb | G61: =+PI()/k/k*(Lcr+0.5)^2*10 -> 510.1851383 | H61: 601.6626741 | I61: 647.4014419 | J61: 1133.78933 | K61: 1184.666268 | L61: 489.3975858 | M61: 619.9956163
B62: SGMgr1 | C62: grazing CS | E62: pi()*Rc^2*(1-VC_RC/Ecm) | F62: mb | G62: =+PI()*Rc_^2* (1- VC_Rc/Ecm)*10 -> 944.2957688 | H62: 1063.639811 | I62: 1123.311833 | J62: 1952.37367 | K62: 2018.047938 | L62: 969.7078212 | M62: 1142.329999
B63: SGMgr2 | C63: grazing CS | E63: pi()*Rint^2*(1-VC/Ecm) | F63: mb | G63: =+PI()*Rint^2* (1- VC /Ecm)*10 -> 1527.138183 | H63: 1675.308681 | I63: 1749.39393 | J63: 2500.164355 | K63: 2574.068927 | L63: 1522.765629 | M63: 1732.566506
B64: Dgr | C64: dist.of cl.appr. in the graz.angle | E64: a*(1+cosec((QP-CM/2)) | F64: fm | G64: =+a*(1+1/SIN(QP_CM*PI()/180)) -> 4.133066301 | H64: 3.967570903 | I64: 3.887596166 | J64: 4.847881577 | K64: 4.782340811 | L64: 4.38283147 | M64: 4.15023288
B65: Dgr/AtAp3 | C65: ratio Dgr to AtAp3 | E65: Dgr/AtAp3 | F65: fm | G65: =+Dgr/AtAp3 -> 0.9972604396 | H65: 0.9573283403 | I65: 0.9380313741 | J65: 0.8483734421 | K65: 0.8369038869 | L65: 0.9984943609 | M65: 0.9455038724
B66: WaveLength | E66: 197/sqrt(2*Ap*931*Elab) | F66: fm | G66: =197/SQRT(2*Ap*Elab*931) -> 0.08503446663 | H66: 0.06012844799 | I66: 0.04251723331 | J66: 0.02127820501 | K66: 0.01737358164 | L66: 0.5102583483 | M66: 0.3608071382
B67: AngDif1 | E67: 2*asin(pi()*WaveLength/2/Rt) | F67: degrees | G67: =2*ASIN(PI()*WaveLength/2/Rt)*180/PI() -> 10.30265719 | H67: 7.280164474 | I67: 5.146120946 | J67: 1.674697749 | K67: 1.367368761 | L67: 29.8489521 | M67: 20.9856316
B68: AngDif2 | E68: 2*asin(pi()*WaveLength/Rt) | F68: degrees | G68: =2*ASIN(PI()*WaveLength/Rt)*180/PI() -> 20.68979422 | H68: 14.58992287 | I68: 10.30265719 | J68: 3.34975332 | K68: 2.734932263 | L68: 62.00710053 | M68: 42.7197263
B69: bgr | C69: impact parameter for graz. | E69: a*cos(1/2*Qgr) | F69: fm | G69: =+a*COS(0.5*PI()/180*Qgr) -> 0.6174739131 | H69: 0.3096763755 | I69: 0.1549442047 | J69: 0.379273907 | K69: 0.2529792614 | L69: 0.8441928186 | M69: 0.4245397038

Sheet Z -> data
B2: Brho1= | C2: 3.4 | G2: section
B3: Brho2= | C3: 3.4 | G3: first | H3: second | I3: final
E4: Energy | F4: MeV/A | G4: =+Brho2Energy(Brho1,A,Q1_) -> 130.3069771 | H4: =+Brho2Energy(Brho2,A,Q2_) -> 130.3069771 | I4: =+H4 -> 130.3069771
B5: =+C6&Show_Element(Z)&" "&C8&"+"&C9&"+" -> 32S 16+16+ | E5: beta | G5: =Energy2Beta(G4) -> 0.4799837098 | H5: =Energy2Beta(H4) -> 0.4799837098 | I5: =+H5 -> 0.4799837098
B6: A | C6: 32 | E6: gamma | G6: =+Beta2Gamma(G5) -> 1.1398903 | H6: =+Beta2Gamma(H5) -> 1.1398903 | I6: =+H6 -> 1.1398903
B7: Z | C7: 16 | E7: TOF | F7: ns | G7: =+length1/G5/c_speed -> 121.5241996 | H7: =+length2/H5/c_speed -> 125.0546979 | I7: =+H7+G7 -> 246.5788975
B8: Q1 | C8: =+C7 -> 16 | E8: TKE | F8: MeV | G8: =+G4*A -> 4169.823268 | H8: =+H4*A -> 4169.823268 | I8: =+H8 -> 4169.823268
B9: Q2 | C9: =+Q1_ -> 16 | E9: az | F9: (for bz=0) | I9: =+Z/SQRT(B19/I10) -> 7.637777798
E10: dE_v | F10: MeV | I10: =-1+LN(5930/(1/I5/I5-1))/I5/I5 -> 31.47458842
D13: acquisition | H13: plot
B14: phys.value | D14: channel | E14: min | F14: max | G14: range | H14: dim | I14: range | J14: channel
A15: RF1-1 | B15: =+I7 -> 246.5788975 | C15: ns | D15: =+(B15-b_tof)/a_tof -> 842.7125968 | E15: 0 | F15: 4095 | G15: =+F15-E15 -> 4095 | H15: 10 | I15: =2^H15 -> 1024 | J15: =+(D15-E15)/G15*I15 -> 210.7295968
A16: RF1-2 | B16: =+B15 -> 246.5788975 | C16: ns | D16: =+(B16-b_tof-shift)/a_tof -> 2590.399468 | E16: 0 | F16: 4095 | G16: 4095 | H16: 10 | I16: 1024 | J16: 647.7580111
A17: RF2-1 | B17: =+B16 -> 246.5788975 | C17: ns | D17: =+(B17-b_tof2)/a_tof2 -> 692.5919675 | E17: 0 | F17: 4095 | G17: 4095 | H17: 10 | I17: 1024 | J17: 173.1902746
A18: RF2-2 | B18: =+B17 -> 246.5788975 | C18: ns | D18: =+(B18-b_tof2-shift2)/a_tof2 -> 2408.390355 | E18: 0 | F18: 4095 | G18: 4095 | H18: 10 | I18: 1024 | J18: 602.2446211
A19: pin.E | B19: =+(I4-EnergyLossInMatter(Z,A,I4,show_Z(Material_pin),Thickness_pin))*A -> 138.1229948 | C19: MeV | D19: =+(B19-b_pin_de)/a_pin_de -> 756.4554813 | E19: 0 | F19: 4095 | G19: 4095 | H19: 10 | I19: 1024 | J19: 189.160052
A20: sci.DE | B20: =+I8-I7*relat_PPAC_dE -> 3923.24437 | C20: MeV | D20: =+(B20-b_sci_de)/a_sci_de -> 1254.423632 | E20: 0 | F20: 16383 | G20: 16383 | H20: 10 | I20: 1024 | J20: 78.40626256
A24: cell to edit

Sheet data -> Z
A1: Brho1= | B1: 3.4
A2: Brho2= | B2: =+Brho1 -> 3.4
B4: plot | E4: acquisition
B5: channel | C5: dim | D5: range | E5: min | F5: max | G5: range | H5: channel | I5: phys.value | K5: beta | L5: beta2 | M5: de_v | N5: gamma | O5: AoQ | P5: Z | Q5: AoQ * Z | R5: Q | S5: AoQ * Q
A6: RF1-1 | B6: 217.7 | C6: 10 | D6: =2^C6 -> 1024 | E6: 0 | F6: 4095 | G6: =+F6-E6 -> 4095 | H6: =+B6/D6*G6+E6 -> 870.5874023 | I6: =a_tof*H6+b_tof -> 245.8912557 | J6: ns | K6: =+(length1*Brho2/Brho1+length2)/I6/c_speed -> 0.4813259977 | L6: =+K6*K6 -> 0.2316747161 | M6: =-1+LN(5930/(1/L6-1))/L6 -> 31.3250665 | N6: =+Beta2Gamma(K6) -> 1.140847086 | O6: =+Brho2/3.1071/K6/N6 -> 1.992768864 | P6: =+a_z*SQRT(I$10/M6)+b_z -> 27.99967821 | Q6: =+P6*O6 -> 55.79688692 | R6: =+TKE/(N6-1)/O6/aem -> 17.52700808 | S6: =+R6*O6 -> 34.92727597
A7: RF1-2 | C7: 10 | D7: 1024 | E7: 0 | F7: 4095 | G7: 4095 | H7: 0 | I7: =a_tof*H7+b_tof+shift -> 310.4812972 | J7: ns | K7: =+(length1*Brho2/Brho1+length2)/I7/c_speed -> 0.3811947936 | L7: =+K7*K7 -> 0.1453094706 | M7: =-1+LN(5930/(1/L7-1))/L7 -> 46.59432238 | N7: =+Beta2Gamma(K7) -> 1.081671916 | O7: =+Brho2/3.1071/K7/Beta2Gamma(K7) -> 2.653879328 | P7: =+a_z*SQRT(I$10/M7)+b_z -> 22.96152144 | Q7: =+P7*O7 -> 60.93710708 | R7: =+TKE/(N7-1)/O7/aem -> 22.69648821 | S7: =+R7*O7 -> 60.23374087
A8: RF2-1 | C8: 10 | D8: 1024 | E8: 0 | F8: 4095 | G8: 4095 | H8: 0 | I8: =a_tof2*H8+b_tof2 -> 263.9819426 | J8: ns | K8: =+(length1*Brho2/Brho1+length2)/I8/c_speed -> 0.4483407193 | L8: =+K8*K8 -> 0.2010094005 | M8: =-1+LN(5930/(1/L8-1))/L8 -> 35.35542401 | N8: =+Beta2Gamma(K8) -> 1.118739997 | O8: =+Brho2/3.1071/K8/Beta2Gamma(K8) -> 2.181656321 | P8: =+a_z*SQRT(I$10/M8)+b_z -> 26.35665963 | Q8: =+P8*O8 -> 57.50117309 | R8: =+TKE/(N8-1)/O8/aem -> 18.9901857 | S8: =+R8*O8 -> 41.43005868
A9: RF2-2 | C9: 10 | D9: 1024 | E9: 0 | F9: 4095 | G9: 4095 | H9: 0 | I9: =a_tof2*H9+b_tof2+shift -> 307.0955188 | J9: ns | K9: =+(length1*Brho2/Brho1+length2)/I9/c_speed -> 0.3853975286 | L9: =+K9*K9 -> 0.1485312551 | M9: =-1+LN(5930/(1/L9-1))/L9 -> 45.73502626 | N9: =+Beta2Gamma(K9) -> 1.083716397 | O9: =+Brho2/3.1071/K9/Beta2Gamma(K9) -> 2.619986877 | P9: =+a_z*SQRT(I$10/M9)+b_z -> 23.17603779 | Q9: =+P9*O9 -> 60.72091489 | R9: =+TKE/(N9-1)/O9/aem -> 22.42863975 | S9: =+R9*O9 -> 58.76274182
A10: pin.E | B10: 582.2 | C10: 10 | D10: 1024 | E10: 0 | F10: 4095 | G10: 4095 | H10: 2328.231445 | I10: =+a_pin_de*H10+b_pin_de -> 420.1367921 | J10: MeV
A11: sci.DE | B11: 82.2 | C11: 10 | D11: 1024 | E11: 0 | F11: 16383 | G11: 16383 | H11: 1315.119727 | I11: =+a_sci_de*H11+b_sci_de -> 4162.261063 | J11: MeV
H13: TKE = | I13: =+I10*relat_PPAC_dE+I11 -> 4582.397855 | J13: MeV
A16: cell to edit

Sheet parameters
A1: pid.rf1 | E1: pid.rf2
A2: a_tof= | B2: -0.02466893638 | C2: ns/ch | E2: a_tof2= | F2: -0.0251274139 | G2: ns/ch
A3: b_tof= | B3: 267.367721 | C3: ns | E3: b_tof2= | F3: 263.9819426 | G3: ns
A4: shift= | B4: =+shift_calc -> 43.11357625 | C4: ns | E4: shift2= | F4: =+shift_calc -> 43.11357625 | G4: ns
A7: fp.pin | E7: fp.sci
A8: a_pin_de= | B8: 0.1794236608 | C8: MeV/ch | E8: a_sci_de= | F8: 3.937925427 | G8: MeV/ch
A9: b_pin_de= | B9: 2.396983068 | C9: MeV | E9: b_sci_de= | F9: -1016.582348 | G9: MeV
A10: Material_pin= | B10: Si
A11: Thickness_pin= | B11: 109.96 | C11: mg/cm2
E12: different
E13: HF= | F13: 23.19455 | G13: MHz
A14: pid.Z | E14: shift_calc= | F14: =1/HF/1000000/0.000000001 -> 43.11357625 | G14: ns
A15: a_z= | B15: 7.64
A16: b_z= | B16: 0.02 | E16: length1= | F16: 17.486 | G16: m
E17: length2= | F17: =35.48-F16 -> 17.994 | G17: m
E19: radius= | F19: 3.1 | G19: m
E20: mass_58Ni= | F20: 57.9353 | G20: aem
E21: relat_PPAC_dE= | F21: 1
E22: c_speed= | F22: 0.299779 | G22: m/ns
E23: aem= | F23: 931.49432
A25: information | E25: slopeX= | F25: 1
A26: cells to edit | E26: offsetX= | F26: 0
A27: protected cells
E28: slope_Brho= | F28: =1/dispersion/100 -> 0.0001691309039
E29: dispersion= | F29: 59.1258 | G29: mm/%

Sheet data (hidden)
A1: Z | B1: Name | C1: Mass | D1: Density | F1: N | G1: A/Q | H1: Fq | I1: B0 | K1: No. | L1: Name | M1: Fit | N1: Basin
A2: 1 | B2: H | C2: 1.008 | D2: 0.0715 | H2: MHz | I2: T | K2: 1 | L2: Cp(0) | M2: -2.584 | N2: -2.584
A3: =1+A2 -> 2 | B3: He | C3: 4.003 | D3: 0.1259 | F3: 1 | G3: 2 | H3: 22.081 | I3: 1.448 | K3: 2 | L3: Cp(1) | M3: -0.00757 | N3: -0.00757
A4: 3 | B4: Li | C4: 6.941 | D4: 0.534 | F4: 2 | G4: 2.02 | H4: 21.962 | I4: 1.455 | K4: 3 | L4: Cp(2) | M4: 0.01251368856 | N4: 0
A5: 4 | B5: Be | C5: 9.012 | D5: 1.848 | F5: 3 | G5: 2.04 | H5: 21.845 | I5: 1.461 | K5: 4 | L5: Cp(3) | M5: 0.03567886494 | N5: 1
A6: 5 | B6: B | C6: 10.811 | D6: 2.3502 | F6: 4 | G6: 2.06 | H6: 21.728 | I6: 1.468 | K6: 5 | L6: czp(0) | M6: -0.895 | N6: -0.895
A7: 6 | B7: C | C7: 12.011 | D7: 2.253 | F7: 5 | G7: 2.08 | H7: 21.613 | I7: 1.474 | K7: 6 | L7: czp(1) | M7: 0.02703 | N7: 0.02703
A8: 7 | B8: N | C8: 14.007 | D8: 1.026 | F8: 6 | G8: 2.1 | H8: 21.498 | I8: 1.48 | K8: 7 | L8: czp(2) | M8: 0.0002041 | N8: 0.0002041
A9: 8 | B9: O | C9: 15.999 | D9: 1.426 | F9: 7 | G9: 2.12 | H9: 21.384 | I9: 1.487 | K9: 8 | L9: czp(3) | M9: 0 | N9: 0
A10: 9 | B10: F | C10: 18.998 | D10: 1.1111 | F10: 8 | G10: 2.14 | H10: 21.271 | I10: 1.493 | K10: 9 | L10: cdqn(0) | M10: 0 | N10: 0
A11: 10 | B11: Ne | C11: 20.18 | D11: 1.204 | F11: 9 | G11: 2.16 | H11: 21.159 | I11: 1.499 | K11: 10 | L11: cdqn(1) | M11: 0.541697 | N11: 0.541697
A12: 11 | B12: Na | C12: 22.99 | D12: 0.97 | F12: 10 | G12: 2.18 | H12: 21.048 | I12: 1.505 | K12: 11 | L12: cdqn(2) | M12: 0 | N12: 0
A13: 12 | B13: Mg | C13: 24.305 | D13: 1.7366 | F13: 11 | G13: 2.2 | H13: 20.937 | I13: 1.51 | K13: 12 | L13: cdqn(3) | M13: 0.365443 | N13: 0.365443
A14: 13 | B14: Al | C14: 26.982 | D14: 2.702 | F14: 12 | G14: 2.22 | H14: 20.828 | I14: 1.516 | K14: 13 | L14: cdqp(0) | M14: 0 | N14: 0
A15: 14 | B15: Si | C15: 28.086 | D15: 2.3212 | F15: 13 | G15: 2.24 | H15: 20.719 | I15: 1.522 | K15: 14 | L15: cdqp(1) | M15: -0.279305 | N15: -0.279305
A16: 15 | B16: P | C16: 30.974 | D16: 1.8219 | F16: 14 | G16: 2.26 | H16: 20.61 | I16: 1.527 | K16: 15 | L16: cdqp(2) | M16: 0 | N16: 0
A17: 16 | B17: S | C17: 32.066 | D17: 2.0686 | F17: 15 | G17: 2.28 | H17: 20.502 | I17: 1.533 | K17: 16 | L17: cdqp(3) | M17: 0.87914 | N17: 0.87914
A18: 17 | B18: Cl | C18: 35.453 | D18: 1.8956 | F18: 16 | G18: 2.3 | H18: 20.395 | I18: 1.538 | K18: 17 | L18: cr(0) | M18: 2.1779 | N18: 2.1779
A19: 18 | B19: Ar | C19: 39.948 | D19: 1.6504 | F19: 17 | G19: 2.32 | H19: 20.289 | I19: 1.543 | K19: 18 | L19: cr(1) | M19: -0.00677021 | N19: -0.00677021
A20: 19 | B20: K | C20: 39.098 | D20: 0.8632 | F20: 18 | G20: 2.34 | H20: 20.183 | I20: 1.549 | K20: 19 | L20: cr(2) | M20: 0 | N20: 0
A21: 20 | B21: Ca | C21: 40.08 | D21: 1.54 | F21: 19 | G21: 2.36 | H21: 20.078 | I21: 1.554 | K21: 20 | L21: cr(3) | M21: 0 | N21: 0
A22: 21 | B22: Sc | C22: 44.956 | D22: 2.989 | F22: 20 | G22: 2.38 | H22: 19.973 | I22: 1.559 | K22: 21 | L22: up | M22: 2 | N22: 2
A23: 22 | B23: Ti | C23: 47.9 | D23: 4.5189 | F23: 21 | G23: 2.4 | H23: 19.869 | I23: 1.564 | K23: 22 | L23: un | M23: 1.5 | N23: 1.5
A24: 23 | B24: V | C24: 50.942 | D24: 5.96 | F24: 22 | G24: 2.42 | H24: 19.766 | I24: 1.568
A25: 24 | B25: Cr | C25: 51.996 | D25: 7.2 | F25: 23 | G25: 2.44 | H25: 19.663 | I25: 1.573
A26: 25 | B26: Mn | C26: 54.938 | D26: 7.4341 | F26: 24 | G26: 2.46 | H26: 19.561 | I26: 1.578
A27: 26 | B27: Fe | C27: 55.847 | D27: 7.8658 | F27: 25 | G27: 2.48 | H27: 19.46 | I27: 1.582
A28: 27 | B28: Co | C28: 58.933 | D28: 8.9 | F28: 26 | G28: 2.5 | H28: 19.359 | I28: 1.587
A29: 28 | B29: Ni | C29: 58.69 | D29: 8.8955 | F29: 27 | G29: 2.52 | H29: 19.258 | I29: 1.591
A30: 29 | B30: Cu | C30: 63.546 | D30: 8.92 | F30: 28 | G30: 2.54 | H30: 19.159 | I30: 1.596
A31: 30 | B31: Zn | C31: 65.39 | D31: 7.14 | F31: 29 | G31: 2.56 | H31: 19.06 | I31: 1.6
A32: 31 | B32: Ga | C32: 69.72 | D32: 5.904 | F32: 30 | G32: 2.58 | H32: 18.961 | I32: 1.604
A33: 32 | B33: Ge | C33: 72.61 | D33: 5.35 | F33: 31 | G33: 2.6 | H33: 18.863 | I33: 1.608
A34: 33 | B34: As | C34: 74.922 | D34: 5.727 | F34: 32 | G34: 2.62 | H34: 18.766 | I34: 1.612
A35: =1+A34 -> 34 | B35: Se | C35: 78.96 | D35: 4.81 | F35: 33 | G35: 2.64 | H35: 18.67 | I35: 1.616
A36: 35 | B36: Br | C36: 79.904 | D36: 3.199 | F36: 34 | G36: 2.66 | H36: 18.574 | I36: 1.62
A37: 36 | B37: Kr | C37: 83.8 | D37: 2.6021 | F37: 35 | G37: 2.68 | H37: 18.478 | I37: 1.624
A38: 37 | B38: Rb | C38: 85.47 | D38: 1.532 | F38: 36 | G38: 2.7 | H38: 18.384 | I38: 1.628
A39: 38 | B39: Sr | C39: 87.62 | D39: 2.6 | F39: 37 | G39: 2.72 | H39: 18.289 | I39: 1.631
A40: 39 | B40: Y | C40: 88.905 | D40: 4.469 | F40: 38 | G40: 2.74 | H40: 18.196 | I40: 1.635
A41: 40 | B41: Zr | C41: 91.22 | D41: 6.49 | F41: 39 | G41: 2.76 | H41: 18.103 | I41: 1.638
A42: 41 | B42: Nb | C42: 92.906 | D42: 8.57 | F42: 40 | G42: 2.78 | H42: 18.011 | I42: 1.642
A43: 42 | B43: Mo | C43: 95.94 | D43: 10.206 | F43: 41 | G43: 2.8 | H43: 17.919 | I43: 1.645
A44: 43 | B44: Tc | C44: 97 | D44: 11.5 | F44: 42 | G44: 2.82 | H44: 17.829 | I44: 1.649
A45: 44 | B45: Ru | C45: 101.07 | D45: 12.3 | F45: 43 | G45: 2.84 | H45: 17.738 | I45: 1.652
A46: 45 | B46: Rh | C46: 102.91 | D46: 12.399 | F46: 44 | G46: 2.86 | H46: 17.649 | I46: 1.655
A47: 46 | B47: Pd | C47: 106.4 | D47: 12.02 | F47: 45 | G47: 2.88 | H47: 17.56 | I47: 1.658
A48: 47 | B48: Ag | C48: 107.87 | D48: 10.473 | F48: 46 | G48: 2.9 | H48: 17.471 | I48: 1.661
A49: 48 | B49: Cd | C49: 112.4 | D49: 8.642 | F49: 47 | G49: 2.92 | H49: 17.384 | I49: 1.664
A50: 49 | B50: In | C50: 114.82 | D50: 7.3 | F50: 48 | G50: 2.94 | H50: 17.297 | I50: 1.667
A51: 50 | B51: Sn | C51: 118.71 | D51: 7.2816 | F51: 49 | G51: 2.96 | H51: 17.21 | I51: 1.67
A52: 51 | B52: Sb | C52: 121.75 | D52: 6.684 | F52: 50 | G52: 2.98 | H52: 17.125 | I52: 1.673
A53: 52 | B53: Te | C53: 127.6 | D53: 6.25 | F53: 51 | G53: 3 | H53: 17.039 | I53: 1.676
A54: 53 | B54: I | C54: 126.9 | D54: 4.9373 | F54: 52 | G54: 3.02 | H54: 16.955 | I54: 1.679
A55: 54 | B55: Xe | C55: 131.3 | D55: 3.0589 | F55: 53 | G55: 3.04 | H55: 16.871 | I55: 1.682
A56: 55 | B56: Cs | C56: 132.91 | D56: 1.8785 | F56: 54 | G56: 3.06 | H56: 16.788 | I56: 1.685
A57: 56 | B57: Ba | C57: 137.327 | D57: 3.51 | F57: 55 | G57: 3.08 | H57: 16.706 | I57: 1.687
A58: 57 | B58: La | C58: 138.91 | D58: 6.1738 | F58: 56 | G58: 3.1 | H58: 16.624 | I58: 1.69
A59: 58 | B59: Ce | C59: 140.12 | D59: 6.6724 | F59: 57 | G59: 3.12 | H59: 16.543 | I59: 1.692
A60: 59 | B60: Pr | C60: 140.91 | D60: 6.773 | F60: 58 | G60: 3.14 | H60: 16.462 | I60: 1.695
A61: 60 | B61: Nd | C61: 144.24 | D61: 7.008 | F61: 59 | G61: 3.16 | H61: 16.382 | I61: 1.697
A62: 61 | B62: Pm | C62: 148 | D62: 6.475 | F62: 60 | G62: 3.18 | H62: 16.303 | I62: 1.7
A63: 62 | B63: Sm | C63: 150.36 | D63: 7.52 | F63: 61 | G63: 3.2 | H63: 16.224 | I63: 1.702
A64: 63 | B64: Eu | C64: 151.97 | D64: 5.244 | F64: 62 | G64: 3.22 | H64: 16.146 | I64: 1.705
A65: 64 | B65: Gd | C65: 157.25 | D65: 7.901 | F65: 63 | G65: 3.24 | H65: 16.069 | I65: 1.707
A66: 65 | B66: Tb | C66: 158.93 | D66: 8.23 | F66: 64 | G66: 3.26 | H66: 15.992 | I66: 1.71
A67: =1+A66 -> 66 | B67: Dy | C67: 162.5 | D67: 8.551 | F67: 65 | G67: 3.28 | H67: 15.916 | I67: 1.712
A68: 67 | B68: Ho | C68: 164.93 | D68: 8.795 | F68: 66 | G68: 3.3 | H68: 15.841 | I68: 1.714
A69: 68 | B69: Er | C69: 167.26 | D69: 9.066 | F69: 67 | G69: 3.32 | H69: 15.766 | I69: 1.716
A70: 69 | B70: Tm | C70: 168.93 | D70: 9.321 | F70: 68 | G70: 3.34 | H70: 15.691 | I70: 1.719
A71: 70 | B71: Yb | C71: 173.04 | D71: 6.96 | F71: 69 | G71: 3.36 | H71: 15.618 | I71: 1.721
A72: 71 | B72: Lu | C72: 174.97 | D72: 9.841 | F72: 70 | G72: 3.38 | H72: 15.545 | I72: 1.723
A73: 72 | B73: Hf | C73: 178.49 | D73: 13.31 | F73: 71 | G73: 3.4 | H73: 15.472 | I73: 1.725
A74: 73 | B74: Ta | C74: 180.95 | D74: 16.601 | F74: 72 | G74: 3.42 | H74: 15.4 | I74: 1.727
A75: 74 | B75: W | C75: 183.85 | D75: 19.35 | F75: 73 | G75: 3.44 | H75: 15.329 | I75: 1.729
A76: 75 | B76: Re | C76: 186.2 | D76: 20.53 | F76: 74 | G76: 3.46 | H76: 15.258 | I76: 1.731
A77: 76 | B77: Os | C77: 190.2 | D77: 22.48 | F77: 75 | G77: 3.48 | H77: 15.188 | I77: 1.733
A78: 77 | B78: Ir | C78: 192.2 | D78: 22.421 | F78: 76 | G78: 3.5 | H78: 15.119 | I78: 1.735
A79: 78 | B79: Pt | C79: 195.08 | D79: 21.45 | F79: 77 | G79: 3.52 | H79: 15.05 | I79: 1.737
A80: 79 | B80: Au | C80: 196.97 | D80: 19.311 | F80: 78 | G80: 3.54 | H80: 14.981 | I80: 1.739
A81: 80 | B81: Hg | C81: 200.59 | D81: 13.5462 | F81: 79 | G81: 3.56 | H81: 14.913 | I81: 1.741
A82: 81 | B82: Tl | C82: 204.38 | D82: 11.85 | F82: 80 | G82: 3.58 | H82: 14.846 | I82: 1.743
A83: 82 | B83: Pb | C83: 207.19 | D83: 11.3437 | F83: 81 | G83: 3.6 | H83: 14.779 | I83: 1.745
A84: 83 | B84: Bi | C84: 208.98 | D84: 9.8 | F84: 82 | G84: 3.62 | H84: 14.713 | I84: 1.746
A85: 84 | B85: Po | C85: 210 | D85: 9.2511 | F85: 83 | G85: 3.64 | H85: 14.647 | I85: 1.748
A86: 85 | B86: At | C86: 210 | D86: 10 | F86: 84 | G86: 3.66 | H86: 14.582 | I86: 1.75
A87: 86 | B87: Rn | C87: 222 | D87: 9.91 | F87: 85 | G87: 3.68 | H87: 14.518 | I87: 1.752
A88: 87 | B88: Fr | C88: 223 | D88: 10 | F88: 86 | G88: 3.7 | H88: 14.454 | I88: 1.754
A89: 88 | B89: Ra | C89: 226 | D89: 5.0222 | F89: 87 | G89: 3.72 | H89: 14.39 | I89: 1.755
A90: 89 | B90: Ac | C90: 227 | D90: 10 | F90: 88 | G90: 3.74 | H90: 14.327 | I90: 1.757
A91: 90 | B91: Th | C91: 232 | D91: 11.658 | F91: 89 | G91: 3.76 | H91: 14.264 | I91: 1.759
A92: 91 | B92: Pa | C92: 231 | D92: 15.37 | F92: 90 | G92: 3.78 | H92: 14.202 | I92: 1.76
A93: 92 | B93: U | C93: 238.03 | D93: 19.043 | F93: 91 | G93: 3.8 | H93: 14.141 | I93: 1.762
A94: 93 | B94: Np | C94: 239 | D94: 19.043 | F94: 92 | G94: 3.82 | H94: 14.08 | I94: 1.764
A95: 94 | B95: Pu | C95: 239 | D95: 19.043 | F95: 93 | G95: 3.84 | H95: 14.019 | I95: 1.765
A96: 95 | B96: Am | C96: 243 | D96: 19.043 | F96: 94 | G96: 3.86 | H96: 13.959 | I96: 1.767
A97: 96 | B97: Cm | C97: 245 | D97: 19.043 | F97: 95 | G97: 3.88 | H97: 13.899 | I97: 1.768
A98: 97 | B98: Bk | C98: 248 | D98: 19.043 | F98: 96 | G98: 3.9 | H98: 13.84 | I98: 1.77
A99: =1+A98 -> 98 | B99: Cf | C99: 249 | D99: 19.043 | F99: 97 | G99: 3.92 | H99: 13.781 | I99: 1.771
A100: 99 | B100: Es | C100: 254 | D100: 19.043 | F100: 98 | G100: 3.94 | H100: 13.723 | I100: 1.773
A101: 100 | B101: Fm | C101: 252 | D101: 19.043 | F101: 99 | G101: 3.96 | H101: 13.665 | I101: 1.774
A102: 101 | B102: Md | C102: 255 | D102: 19.043 | F102: 100 | G102: 3.98 | H102: 13.607 | I102: 1.776
A103: 102 | B103: No | C103: 254 | D103: 19.043 | F103: 101 | G103: 4 | H103: 13.551 | I103: 1.777
A104: 103 | B104: Lr | C104: 257 | D104: 19.043 | F104: 102 | G104: 4.02 | H104: 13.494 | I104: 1.779
A105: 104 | B105: Rf | C105: 260 | D105: 19.043 | F105: 103 | G105: 4.04 | H105: 13.438 | I105: 1.78
A106: 105 | B106: Db | C106: 262 | D106: 19.043 | F106: 104 | G106: 4.06 | H106: 13.382 | I106: 1.782
A107: 106 | B107: Sg | C107: 265 | D107: 19.043 | F107: 105 | G107: 4.08 | H107: 13.327 | I107: 1.783
A108: 107 | B108: Bh | C108: 267 | D108: 19.043 | F108: 106 | G108: 4.1 | H108: 13.272 | I108: 1.784
A109: 108 | B109: Hs | C109: 270 | D109: 19.043 | F109: 107 | G109: 4.12 | H109: 13.218 | I109: 1.786
A110: 109 | B110: Mt | C110: 272 | D110: 19.043 | F110: 108 | G110: 4.14 | H110: 13.164 | I110: 1.787
A111: 110 | B111: Ds | C111: 275 | D111: 19.043 | F111: 109 | G111: 4.16 | H111: 13.11 | I111: 1.788
A112: 111 | B112: Rg | C112: 277 | D112: 19.043 | F112: 110 | G112: 4.18 | H112: 13.057 | I112: 1.79
A113: 112 | B113: Cn | C113: 280 | D113: 19.043 | F113: 111 | G113: 4.2 | H113: 13.004 | I113: 1.791
A114: 113 | B114: Ed | C114: 282 | D114: 19.043 | F114: 112 | G114: 4.22 | H114: 12.951 | I114: 1.792
A115: 114 | B115: Fl | C115: 285 | D115: 19.043 | F115: 113 | G115: 4.24 | H115: 12.899 | I115: 1.793
A116: 115 | B116: Ef | C116: 287 | D116: 19.043 | F116: 114 | G116: 4.26 | H116: 12.847 | I116: 1.795
A117: 116 | B117: Lv | C117: 290 | D117: 19.043 | F117: 115 | G117: 4.28 | H117: 12.796 | I117: 1.796
A118: 117 | B118: Eh | C118: 292 | D118: 19.043 | F118: 116 | G118: 4.3 | H118: 12.745 | I118: 1.797
A119: 118 | B119: Ei | C119: 295 | D119: 19.043 | F119: 117 | G119: 4.32 | H119: 12.695 | I119: 1.798
A120: 119 | B120: B9 | C120: 297 | D120: 19.043 | F120: 118 | G120: 4.34 | H120: 12.644 | I120: 1.799
A121: 120 | B121: C0 | C121: 300 | D121: 19.043 | F121: 119 | G121: 4.36 | H121: 12.594 | I121: 1.801
A122: 121 | B122: C1 | C122: 302 | D122: 19.043 | F122: 120 | G122: 4.38 | H122: 12.545 | I122: 1.802
A123: 122 | B123: C2 | C123: 305 | D123: 19.043 | F123: 121 | G123: 4.4 | H123: 12.496 | I123: 1.803
A124: 123 | B124: C3 | C124: 307 | D124: 19.043 | F124: 122 | G124: 4.42 | H124: 12.447 | I124: 1.804
A125: 124 | B125: C4 | C125: 310 | D125: 19.043 | F125: 123 | G125: 4.44 | H125: 12.398 | I125: 1.805
A126: 125 | B126: C5 | C126: 312 | D126: 19.043 | F126: 124 | G126: 4.46 | H126: 12.35 | I126: 1.806
A127: 126 | B127: C6 | C127: 315 | D127: 19.043 | F127: 125 | G127: 4.48 | H127: 12.302 | I127: 1.807
A128: 127 | B128: C7 | C128: 317 | D128: 19.043 | F128: 126 | G128: 4.5 | H128: 12.255 | I128: 1.808
A129: 128 | B129: C8 | C129: 320 | D129: 19.043 | F129: 127 | G129: 4.52 | H129: 12.208 | I129: 1.809
A130: 129 | B130: C9 | C130: 322 | D130: 19.043 | F130: 128 | G130: 4.54 | H130: 12.161 | I130: 1.81
A131: 130 | B131: D0 | C131: 325 | D131: 19.043 | F131: 129 | G131: 4.56 | H131: 12.115 | I131: 1.811
A132: 131 | B132: D1 | C132: 332 | D132: 19.043 | F132: 130 | G132: 4.58 | H132: 12.068 | I132: 1.812
A133: 132 | B133: D2 | C133: 335 | D133: 19.043 | F133: 131 | G133: 4.6 | H133: 12.023 | I133: 1.813
A134: 133 | B134: D3 | C134: 337 | D134: 19.043 | F134: 132 | G134: 4.62 | H134: 11.977 | I134: 1.814
A135: 134 | B135: D4 | C135: 340 | D135: 19.043 | F135: 133 | G135: 4.64 | H135: 11.932 | I135: 1.815
A136: 135 | B136: D5 | C136: 342 | D136: 19.043 | F136: 134 | G136: 4.66 | H136: 11.887 | I136: 1.816
A137: 136 | B137: D6 | C137: 345 | D137: 19.043 | F137: 135 | G137: 4.68 | H137: 11.842 | I137: 1.817
A138: 137 | B138: D7 | C138: 347 | D138: 19.043 | F138: 136 | G138: 4.7 | H138: 11.798 | I138: 1.818
A139: 138 | B139: D8 | C139: 350 | D139: 19.043 | F139: 137 | G139: 4.72 | H139: 11.754 | I139: 1.819
A140: 139 | B140: D9 | C140: 352 | D140: 19.043 | F140: 138 | G140: 4.74 | H140: 11.711 | I140: 1.82
A141: 140 | B141: E0 | C141: 355 | D141: 19.043 | F141: 139 | G141: 4.76 | H141: 11.667 | I141: 1.821
A142: 141 | B142: E1 | C142: 358 | D142: 19.043 | F142: 140 | G142: 4.78 | H142: 11.624 | I142: 1.822
A143: 142 | B143: E2 | C143: 360 | D143: 19.043 | F143: 141 | G143: 4.8 | H143: 11.581 | I143: 1.823
A144: 143 | B144: E3 | C144: 362 | D144: 19.043 | F144: 142 | G144: 4.82 | H144: 11.539 | I144: 1.824
A145: 144 | B145: E4 | C145: 365 | D145: 19.043 | F145: 143 | G145: 4.84 | H145: 11.497 | I145: 1.825
A146: 145 | B146: E5 | C146: 368 | D146: 19.043 | F146: 144 | G146: 4.86 | H146: 11.455 | I146: 1.825
A147: 146 | B147: E6 | C147: 370 | D147: 19.043 | F147: 145 | G147: 4.88 | H147: 11.413 | I147: 1.826
A148: 147 | B148: E7 | C148: 373 | D148: 19.043 | F148: 146 | G148: 4.9 | H148: 11.372 | I148: 1.827
A149: 148 | B149: E8 | C149: 376 | D149: 19.043 | F149: 147 | G149: 4.92 | H149: 11.331 | I149: 1.828
A150: 149 | B150: E9 | C150: 379 | D150: 19.043 | F150: 148 | G150: 4.94 | H150: 11.29 | I150: 1.829
A151: 150 | B151: F0 | C151: 382 | D151: 19.043 | F151: 149 | G151: 4.96 | H151: 11.25 | I151: 1.83
A152: 151 | B152: F1 | C152: 385 | D152: 19.043 | F152: 150 | G152: 4.98 | H152: 11.21 | I152: 1.831
A153: 152 | B153: F2 | C153: 388 | D153: 19.043 | F153: 151 | G153: 5 | H153: 11.17 | I153: 1.831
A154: 153 | B154: F3 | C154: 391 | D154: 19.043
A155: 154 | B155: F4 | C155: 393 | D155: 19.043
A156: 155 | B156: F5 | C156: 396 | D156: 19.043
A157: 156 | B157: F6 | C157: 399 | D157: 19.043
A158: 157 | B158: F7 | C158: 402 | D158: 19.043
A159: 158 | B159: F8 | C159: 405 | D159: 19.043
A160: 159 | B160: F9 | C160: 408 | D160: 19.043
A161: 160 | B161: F0 | C161: 411 | D161: 19.043
A162: 161 | B162: G1 | C162: 413 | D162: 19.043
A163: =1+A162 -> 162 | B163: G2 | C163: 416 | D163: 19.043
A164: 163 | B164: G3 | C164: 419 | D164: 19.043
A165: 164 | B165: G4 | C165: 422 | D165: 19.043
A166: 165 | B166: G5 | C166: 425 | D166: 19.043
A167: 166 | B167: G6 | C167: 428 | D167: 19.043
A168: 167 | B168: G7 | C168: 431 | D168: 19.043
A169: 168 | B169: G8 | C169: 434 | D169: 19.043
A170: 169 | B170: G9 | C170: 437 | D170: 19.043
A171: 170 | B171: H0 | C171: 440 | D171: 19.043
A172: 171 | B172: H1 | C172: 443 | D172: 19.043
A173: 172 | B173: H2 | C173: 446 | D173: 19.043
A174: 173 | B174: H3 | C174: 449 | D174: 19.043
A175: 174 | B175: H4 | C175: 452 | D175: 19.043
A176: 175 | B176: H5 | C176: 455 | D176: 19.043
A177: 176 | B177: H6 | C177: 457 | D177: 19.043
A178: 177 | B178: H7 | C178: 460 | D178: 19.043
A179: 178 | B179: H8 | C179: 463 | D179: 19.043
A180: 179 | B180: H9 | C180: 466 | D180: 19.043
A181: 180 | B181: H0 | C181: 468 | D181: 19.043
A182: 181 | B182: I1 | C182: 471 | D182: 19.043
A183: 182 | B183: I2 | C183: 474 | D183: 19.043
A184: 183 | B184: I3 | C184: 477 | D184: 19.043
A185: 184 | B185: I4 | C185: 480 | D185: 19.043
A186: 185 | B186: I5 | C186: 483 | D186: 19.043
A187: 186 | B187: I6 | C187: 485 | D187: 19.043
A188: 187 | B188: I7 | C188: 488 | D188: 19.043
A189: 188 | B189: I8 | C189: 491 | D189: 19.043
A190: 189 | B190: I9 | C190: 494 | D190: 19.043
A191: 190 | B191: J0 | C191: 497 | D191: 19.043
A192: 191 | B192: J1 | C192: 500 | D192: 19.043
A193: 192 | B193: J2 | C193: 503 | D193: 19.043
A194: 193 | B194: J3 | C194: 505 | D194: 19.043
A195: 194 | B195: J4 | C195: 507 | D195: 19.043
A196: 195 | B196: J5 | C196: 510 | D196: 19.043
A197: 196 | B197: J6 | C197: 513 | D197: 19.043
A198: 197 | B198: J7 | C198: 516 | D198: 19.043
A199: 198 | B199: J8 | C199: 519 | D199: 19.043
A200: 199 | B200: J9 | C200: 522 | D200: 19.043
... 1 more rows
